bitfinex-derivatives/quotes_ETHF0:USTF0_20260112
["timestamp","ask_amount","ask_price","bid_price","bid_amount"]
[1768207036846,0.55044075,3118.6,3116.6,0.02063015]
[1768207037041,0.55411282,3118.6,3116.6,0.02063015]
[1768207037232,0.55044075,3118.4,3116.6,0.02063015]
[1768207037537,6.7915343,3118.5,3116.6,0.02063015]
[1768207037538,0.55044075,3118.2,3116.6,0.02063015]
[1768207039334,0.55044075,3118.1,3116.6,0.02063015]
[1768207041142,0.16055,3118.2,3116.6,0.02063015]
[1768207041143,0.55044075,3117.9,3116.6,0.02063015]
[1768207041948,0.55044075,3117.9,3116.5,0.02011]
[1768207042941,0.55044075,3117.9,3116.5,0.0241606]
[1768207044154,0.55044075,3117.7,3115.2,0.1607]
[1768207044341,0.55044075,3117.3,3114.7,0.53923265]
[1768207044539,0.55044075,3117.3,3114.9,0.16072]
[1768207044739,0.55044075,3117.3,3115.0,0.16072]
[1768207044941,0.55044075,3117.3,3115.0,0.16457177]
[1768207045450,0.71108075,3116.5,3113.9,0.16077]
[1768207045648,0.55044075,3116.2,3113.3,0.53923265]
[1768207045949,0.55044075,3116.2,3113.5,0.16079]
[1768207046151,0.55044075,3116.0,3113.3,0.53923265]
[1768207046338,0.55325896,3116.0,3113.3,0.54248721]
[1768207046538,0.55044075,3115.8,3113.3,0.00325456]
[1768207046750,0.55044075,3115.6,3113.3,0.00325456]
[1768207046950,0.55044075,3115.5,3113.3,0.00325456]
[1768207047146,0.55044075,3115.3,3113.3,0.00325456]
[1768207047347,0.55044075,3114.7,3112.9,1.11496732]
[1768207047848,0.55044075,3114.6,3112.9,0.11998796]
[1768207048045,0.55044075,3114.3,3110.9,0.53923265]
[1768207048251,0.55044075,3114.1,3110.9,0.53923265]
[1768207048551,0.78699933,3114.2,3110.9,0.00357771]
[1768207048552,0.55044075,3113.4,3110.9,0.00357771]
[1768207048850,0.55044075,3113.2,3110.9,0.00357771]
[1768207049242,0.55044075,3113.0,3110.9,0.00357771]
[1768207049442,0.00321368,3113.4,3111.0,0.70015265]
[1768207049753,0.00321368,3113.4,3111.1,0.53923265]
[1768207049947,0.55365443,3113.4,3111.1,0.53923265]
[1768207050146,0.55044075,3113.2,3110.9,0.00357771]
[1768207050540,0.55044075,3113.1,3110.9,0.00357771]
[1768207050839,9.37381,3113.2,3109.9,0.53923265]
[1768207050840,0.55044075,3112.7,3109.9,0.53923265]
[1768207051350,0.55044075,3112.5,3109.2,0.53923265]
[1768207051647,0.55044075,3112.3,3109.2,0.54161318]
[1768207051850,0.55044075,3112.3,3110.7,0.0461066]
[1768207052145,0.55044075,3112.1,3109.2,0.00238053]
[1768207052349,0.55044075,3111.9,3109.2,0.00238053]
[1768207052538,0.55044075,3112.4,3109.2,0.54161318]
[1768207052852,3.213,3112.4,3109.4,0.53923265]
[1768207053148,0.55044075,3112.3,3110.9,0.0427493]
[1768207053349,0.55044075,3113.0,3110.9,0.0427493]
[1768207053848,0.00321368,3113.4,3110.9,0.58198195]
[1768207054048,0.00321368,3113.4,3112.1,0.0427493]
[1768207054351,0.00321368,3113.4,3112.1,0.04556477]
[1768207055157,0.79799539,3114.9,3112.7,0.0427493]
[1768207055348,0.79799539,3114.9,3112.7,0.79223843]
[1768207055547,0.79799539,3115.5,3112.7,0.79223843]
[1768207056044,0.79799539,3115.3,3114.1,9.3e-06]
[1768207056249,0.16073,3114.9,3112.1,0.7523046]
[1768207056443,0.79799539,3114.4,3112.1,0.00281547]
[1768207056640,0.79799539,3114.2,3112.1,0.00281547]
[1768207056844,0.79799539,3114.0,3112.1,0.00281547]
[1768207057045,0.79799539,3114.0,3110.9,0.74948913]
[1768207057249,0.79799539,3113.4,3110.9,0.74948913]
[1768207057554,3.215,3114.6,3111.0,0.74948913]
[1768207057749,4.01299539,3114.6,3111.5,0.74948913]
[1768207058061,0.00392483,3115.3,3111.7,0.74948913]
[1768207058547,0.80192022,3115.3,3112.8,0.74948913]
[1768207058753,0.00392483,3115.3,3112.8,0.74948913]
[1768207059342,0.80192022,3115.3,3112.8,0.74948913]
[1768207059946,6.00392483,3115.3,3111.8,0.74948913]
[1768207060250,0.79799539,3114.0,3111.5,0.00312695]
[1768207060452,0.79799539,3113.8,3111.5,0.00312695]
[1768207060648,0.16077,3113.7,3111.5,0.75261608]
[1768207060854,0.95876539,3113.7,3111.5,0.75261608]
[1768207061453,0.79799539,3114.3,3111.6,0.74948913]
[1768207061654,0.79799539,3114.6,3111.6,0.74948913]
[1768207062047,4.01299539,3114.5,3111.6,0.74948913]
[1768207062250,0.79799539,3114.4,3111.6,0.74948913]
[1768207062449,0.95872539,3114.4,3111.6,0.74948913]
[1768207063456,4.513,3114.3,3111.6,0.74948913]
[1768207063856,0.95872539,3114.4,3111.6,0.74948913]
[1768207064056,3.216,3114.3,3111.6,0.74948913]
[1768207064255,0.79799539,3114.9,3111.8,0.74948913]
[1768207064564,0.00392483,3115.3,3111.8,0.74948913]
[1768207064768,0.80192022,3115.3,3112.2,0.74948913]
[1768207064961,0.79799539,3115.2,3112.2,0.74948913]
[1768207065758,0.79799539,3115.2,3112.2,3.96548913]
[1768207065953,0.79799539,3115.2,3112.3,0.74948913]
[1768207066257,0.16071,3115.0,3112.3,0.74948913]
[1768207066665,0.79799539,3115.2,3112.3,0.91032913]
[1768207066960,0.00392483,3115.3,3113.0,0.74948913]
[1768207067157,0.00392483,3115.3,3112.3,6.0]
[1768207067158,0.00392483,3115.3,3113.8,0.16076]
[1768207067362,0.16061,3116.9,3114.0,0.74948913]
[1768207067561,0.95860539,3116.9,3114.2,0.74948913]
[1768207067762,0.95862539,3116.4,3113.8,0.75184314]
[1768207068359,0.961266,3116.4,3113.8,0.75184314]
[1768207069264,0.00264061,3116.4,3113.8,0.91260314]
[1768207069462,0.800636,3116.4,3113.8,0.91260314]
[1768207070066,0.00264061,3116.4,3114.0,0.74948913]
[1768207070261,0.00264061,3116.4,3114.1,0.74948913]
[1768207070560,0.00264061,3116.4,3114.7,0.74948913]
[1768207070866,0.00264061,3116.4,3114.7,0.91020913]
[1768207071068,0.00264061,3116.4,3114.9,0.74948913]
[1768207071467,0.79799539,3117.9,3115.3,0.74948913]
[1768207071670,0.79799539,3117.7,3115.3,0.74948913]
[1768207071962,0.16057,3117.5,3115.3,0.74948913]
[1768207072163,0.79799539,3117.7,3115.3,0.74948913]
[1768207072555,0.78931425,3117.6,3115.3,0.74948913]
[1768207072761,0.00413589,3117.7,3115.3,0.74948913]
[1768207072967,0.00413589,3117.7,3115.5,0.74948913]
[1768207073270,0.78937094,3117.6,3115.5,0.74948913]
[1768207073457,0.78937094,3117.5,3115.5,0.74948913]
[1768207073660,0.00413589,3117.7,3115.5,0.74948913]
[1768207073964,0.78937217,3117.6,3115.5,0.74948913]
[1768207074162,0.78937217,3117.5,3115.5,0.74948913]
[1768207074470,0.78937217,3117.4,3115.5,0.74948913]
[1768207074769,0.16469589,3117.7,3115.5,0.74948913]
[1768207074970,0.7896486,3117.6,3115.5,0.74948913]
[1768207075159,0.16058,3117.4,3115.5,0.74948913]
[1768207075465,0.7896486,3117.3,3115.5,0.74948913]
[1768207075659,1.58764399,3117.2,3114.9,0.74948913]
[1768207075857,0.7896486,3117.1,3114.9,0.74948913]
[1768207076052,0.7896486,3117.0,3114.9,0.74948913]
[1768207076276,0.79799539,3117.2,3114.9,0.74948913]
[1768207076568,0.94981981,3117.1,3114.9,0.74948913]
[1768207076764,0.78922981,3117.0,3114.9,0.74948913]
[1768207077161,0.16059,3117.1,3114.9,0.74948913]
[1768207078360,0.00413589,3117.7,3114.9,0.74948913]
[1768207078557,0.7886862,3117.6,3115.1,0.74948913]
[1768207078761,0.78872084,3117.5,3115.2,3.96348913]
[1768207078956,0.00413589,3117.7,3115.2,3.96348913]
[1768207078957,0.78872084,3117.4,3115.3,0.74948913]
[1768207079166,0.00413589,3117.7,3115.4,3.214]
[1768207079468,0.78863686,3117.6,3115.5,0.74948913]
[1768207079661,0.78863686,3117.5,3115.5,0.74948913]
[1768207079862,0.79799539,3117.4,3114.9,0.74948913]
[1768207080073,0.79799539,3117.2,3114.3,0.74948913]
[1768207080266,1.96163365,3117.1,3114.3,0.74948913]
[1768207080467,1.58646623,3117.0,3114.3,0.74948913]
[1768207080774,0.16062,3116.7,3114.3,0.74948913]
[1768207080965,0.16064,3116.2,3113.8,0.75184314]
[1768207081467,0.78928726,3116.1,3113.8,0.75184314]
[1768207081661,0.16064,3116.2,3113.9,0.74948913]
[1768207081865,0.16064,3116.2,3114.1,0.74948913]
[1768207082058,0.790371,3116.1,3114.1,0.74948913]
[1768207082262,0.79799539,3116.9,3114.1,0.74948913]
[1768207082469,0.79054234,3116.8,3114.3,0.74948913]
[1768207082668,0.1606,3117.0,3114.7,0.74948913]
[1768207082865,0.88046955,3116.9,3114.2,1.89]
[1768207083066,0.79133998,3116.8,3114.6,0.16072]
[1768207083267,0.08979087,3116.9,3114.3,5.104]
[1768207083470,0.08979087,3116.9,3115.0,0.1607]
[1768207083970,0.08979087,3116.9,3115.1,3.214]
[1768207084164,0.08979087,3116.9,3115.6,0.16067]
[1768207084359,0.00413589,3117.7,3115.7,0.16067]
[1768207084564,0.08979087,3117.6,3115.2,46.8]
[1768207084772,0.08979087,3117.6,3115.7,0.16066]
[1768207084975,0.08979087,3117.6,3115.8,1.11276544]
[1768207085161,0.08979087,3117.6,3115.9,3.214]
[1768207085667,0.08979087,3117.6,3116.0,1.11276544]
[1768207085866,0.08979087,3117.6,3116.0,1.11530583]
[1768207086173,0.08979087,3117.6,3116.1,1.11276544]
[1768207086372,0.08979087,3117.6,3116.2,4.32676544]
[1768207086667,1.05247939,3118.9,3116.5,1.11276544]
[1768207086869,0.79176315,3118.8,3116.6,6.21576544]
[1768207087066,1.21295939,3119.3,3116.7,1.11276544]
[1768207087067,0.79176315,3118.7,3116.7,1.11276544]
[1768207087263,1.21295939,3119.3,3116.8,1.889]
[1768207087464,1.05247939,3119.1,3117.0,1.11276544]
[1768207087669,1.05247939,3118.9,3116.2,1.11276544]
[1768207087865,1.05247939,3118.4,3116.2,1.11276544]
[1768207088172,1.05247939,3119.2,3116.6,1.11276544]
[1768207088468,1.21297939,3119.0,3116.6,1.11276544]
[1768207088671,2.22079269,3118.9,3116.6,1.11276544]
[1768207088867,0.79169281,3118.8,3116.6,1.11276544]
[1768207089779,1.05247939,3118.5,3116.0,1.11530583]
[1768207090074,0.79169281,3118.4,3116.0,1.11530583]
[1768207090272,0.79169281,3118.3,3116.0,1.11530583]
[1768207090472,1.05247939,3118.5,3116.0,1.11530583]
[1768207090780,0.79160346,3118.4,3116.1,4.40183872]
[1768207090968,0.79160346,3118.3,3116.2,1.18883872]
[1768207091271,1.19179997,3119.1,3116.5,1.18883872]
[1768207091472,0.79245964,3119.0,3116.6,1.18883872]
[1768207091671,0.00237617,3119.3,3117.2,1.18883872]
[1768207092169,0.00237617,3119.3,3117.2,7.18883872]
[1768207092373,0.00237617,3119.3,3117.3,1.18883872]
[1768207092571,0.00237617,3119.3,3117.5,1.18883872]
[1768207093073,0.00237617,3119.3,3116.9,1.18883872]
[1768207093074,1.35228997,3119.1,3116.9,1.18883872]
[1768207093269,1.16992128,3119.0,3116.9,1.18883872]
[1768207093574,1.16992128,3118.9,3116.9,1.18883872]
[1768207093869,0.7933968,3118.8,3116.9,1.18883872]
[1768207094065,1.35228997,3119.1,3116.9,1.18883872]
[1768207094263,1.17197768,3119.0,3116.9,1.18883872]
[1768207094570,0.16049,3119.1,3116.9,1.18883872]
[1768207094774,0.00237617,3119.3,3116.9,1.18883872]
[1768207094975,1.19179997,3119.1,3117.0,3.212]
[1768207095177,1.17262287,3119.0,3117.0,3.212]
[1768207095379,1.17262287,3118.9,3116.9,1.18883872]
[1768207095578,1.17262287,3118.8,3117.0,4.40083872]
[1768207095772,1.19179997,3119.1,3117.1,1.18883872]
[1768207095975,1.17333039,3119.0,3117.1,1.18883872]
[1768207096282,1.17333039,3118.9,3117.1,1.18883872]
[1768207096471,1.17333039,3118.8,3117.1,1.18883872]
[1768207096672,1.17333039,3118.7,3117.1,1.18883872]
[1768207096980,1.19179997,3119.1,3117.1,1.18883872]
[1768207096981,0.37875316,3118.6,3117.1,1.18883872]
[1768207097179,1.19179997,3119.1,3117.1,1.18883872]
[1768207097381,1.17501248,3119.0,3117.1,1.18883872]
[1768207097580,1.17501248,3118.9,3117.1,1.18883872]
[1768207097776,1.17501248,3118.8,3117.1,1.18883872]
[1768207097982,1.17501248,3118.7,3117.1,1.18883872]
[1768207098279,1.17511965,3118.6,3117.1,1.18883872]
[1768207098472,1.19179997,3119.1,3117.1,1.18883872]
[1768207098782,1.17536341,3119.0,3117.3,1.18883872]
[1768207098973,1.17536341,3119.0,3117.0,3.212]
[1768207098974,0.00237617,3119.3,3117.5,1.18883872]
[1768207099581,0.00237617,3119.3,3117.5,3.07283872]
[1768207099785,0.00237617,3119.3,3117.7,1.18883872]
[1768207100281,1.19179997,3119.1,3116.9,0.1606]
[1768207100481,1.35230997,3118.7,3116.8,3.212]
[1768207100778,1.17543664,3118.6,3116.8,3.212]
[1768207100983,1.17543664,3118.5,3116.8,4.40083872]
[1768207101179,1.19179997,3119.1,3116.8,4.40083872]
[1768207101383,1.17533225,3119.0,3116.8,4.40083872]
[1768207101581,1.17533225,3118.9,3116.8,1.18883872]
[1768207101787,1.17533225,3118.8,3116.8,1.18883872]
[1768207101986,1.17533225,3118.7,3116.8,1.18883872]
[1768207102185,1.17533225,3118.6,3116.8,1.18883872]
[1768207102486,0.79649222,3118.5,3116.8,1.18883872]
[1768207102686,0.79649222,3118.4,3116.8,1.18883872]
[1768207102988,0.79648992,3118.3,3116.8,1.18883872]
[1768207103185,1.35228997,3119.1,3116.8,1.18883872]
[1768207103387,0.79643876,3119.0,3116.8,1.18883872]
[1768207103584,0.79643876,3118.9,3116.8,1.18883872]
[1768207103781,0.79643876,3118.8,3116.8,1.18883872]
[1768207103979,0.79643876,3118.7,3116.8,1.18883872]
[1768207104285,0.79643876,3118.6,3116.8,1.18883872]
[1768207104480,0.79643876,3118.5,3116.8,1.18883872]
[1768207104787,0.79643876,3118.4,3116.8,1.18883872]
[1768207104973,0.79643876,3118.3,3116.8,1.18883872]
[1768207105173,1.19179997,3118.9,3116.8,1.18883872]
[1768207105374,0.79652514,3118.8,3116.8,1.18883872]
[1768207105679,1.19179997,3118.9,3116.7,0.16061]
[1768207105680,1.19179997,3118.6,3116.7,0.16061]
[1768207105983,0.79652514,3118.5,3116.7,0.16061]
[1768207106183,0.79652514,3118.4,3116.7,0.16061]
[1768207106385,0.79652514,3118.3,3116.2,1.18883872]
[1768207106685,0.16053,3118.5,3116.0,0.00254039]
[1768207106686,1.19179997,3117.9,3116.0,0.00254039]
[1768207106886,0.79652514,3117.8,3116.0,0.00254039]
[1768207107281,0.79652514,3117.7,3116.0,0.00254039]
[1768207107488,2.36742449,3117.6,3116.0,0.00254039]
[1768207107795,0.79652514,3117.5,3116.0,0.00254039]
[1768207107986,0.79652514,3117.4,3116.0,0.00254039]
[1768207108187,0.79652514,3117.3,3116.0,0.00254039]
[1768207108487,0.79652514,3117.2,3116.0,0.00254039]
[1768207108681,0.79652514,3117.1,3116.0,0.00254039]
[1768207108884,0.79652514,3117.0,3116.0,0.00254039]
[1768207110895,2.25419927,3117.9,3116.0,1.19137911]
[1768207111085,0.79730793,3117.8,3116.1,3.74457356]
[1768207111291,0.79730793,3117.7,3116.4,1.18883872]
[1768207111494,0.79730793,3117.6,3116.4,1.18883872]
[1768207111797,3.44599924,3118.4,3116.4,1.18883872]
[1768207111997,2.36989733,3118.3,3116.4,1.18883872]
[1768207112204,3.60657924,3117.3,3116.0,0.00254039]
[1768207112495,1.19179997,3117.1,3116.0,0.00254039]
[1768207112686,1.17834353,3117.0,3116.0,0.00254039]
[1768207112891,1.17834353,3116.9,3115.0,1.18883872]
[1768207113189,1.17834353,3116.8,3115.0,1.18883872]
[1768207113398,1.17834353,3116.7,3115.0,1.18883872]
[1768207113593,0.79827029,3116.6,3115.0,1.18883872]
[1768207113781,0.79827029,3116.5,3115.0,1.19165309]
[1768207114095,0.79827029,3116.4,3115.0,1.19165309]
[1768207114296,1.19179997,3117.1,3115.0,1.19165309]
[1768207114499,1.17841821,3117.0,3115.0,1.19165309]
[1768207114693,1.17841821,3116.9,3115.0,1.19165309]
[1768207114894,1.17841821,3116.8,3115.0,1.19165309]
[1768207115094,0.79845268,3116.7,3115.0,1.19165309]
[1768207115294,0.79845268,3116.6,3115.0,1.19165309]
[1768207115496,0.79845268,3116.5,3115.0,1.19165309]
[1768207115689,1.19179997,3117.1,3115.0,1.19165309]
[1768207115897,0.7981336,3117.0,3115.0,1.19165309]
[1768207116097,0.7981336,3116.9,3115.1,1.40520311]
[1768207116303,0.7981336,3116.8,3115.1,1.56589311]
[1768207116598,6.21324375,3118.1,3115.7,1.56586311]
[1768207116900,1.1714983,3118.0,3115.7,1.56586311]
[1768207117198,2.55183357,3117.9,3115.8,6.49620311]
[1768207117392,0.79834182,3117.8,3116.2,1.40520311]
[1768207117597,0.79834182,3117.7,3116.2,1.40520311]
[1768207117794,0.00346347,3118.4,3116.2,1.40520311]
[1768207117795,1.38379874,3118.4,3116.2,1.56584311]
[1768207118001,0.79748663,3118.3,3116.5,1.40520311]
[1768207118193,0.00346347,3118.4,3116.9,1.40520311]
[1768207118400,0.00346347,3118.4,3117.0,6.49520311]
[1768207118600,0.00346347,3118.4,3117.1,1.40520311]
[1768207118801,0.5,3118.5,3117.1,1.40520311]
[1768207119399,0.5,3118.5,3117.2,1.40520311]
[1768207119899,0.50372901,3118.5,3117.2,1.40818117]
[1768207120199,1.38033527,3119.6,3117.4,2.71631484]
[1768207120401,1.38033527,3119.4,3117.2,0.00297806]
[1768207120697,1.38033527,3119.2,3117.2,0.00297806]
[1768207120902,1.38033527,3119.0,3117.2,0.00297806]
[1768207121096,1.38033527,3118.8,3117.2,0.00297806]
[1768207121297,2.17779388,3118.7,3117.2,0.00297806]
[1768207121498,0.79745861,3118.6,3117.2,0.00297806]
[1768207121799,0.79745861,3118.5,3117.2,0.00297806]
[1768207122005,1.38033527,3118.7,3117.2,0.00297806]
[1768207122306,1.38033527,3118.5,3116.0,0.16065]
[1768207122603,1.38033527,3118.3,3116.0,0.16065]
[1768207122799,1.38033527,3118.1,3115.7,3.28220311]
[1768207123003,1.38033527,3118.1,3115.5,3.212]
[1768207123004,1.38033527,3117.7,3115.2,0.16069]
[1768207123195,1.38033527,3117.5,3115.3,1.56589311]
[1768207123390,1.16054075,3117.4,3115.3,1.56852711]
[1768207123595,0.79774596,3117.3,3115.7,2.55573484]
[1768207123814,1.38033527,3118.1,3115.7,2.55573484]
[1768207124000,2.54076159,3118.0,3115.7,2.55573484]
[1768207124202,2.54076159,3117.9,3115.7,2.71639484]
[1768207124404,1.16042632,3117.8,3115.7,2.71639484]
[1768207124601,0.7976631,3117.7,3115.7,2.71639484]
[1768207124798,0.7976631,3117.6,3115.7,2.71639484]
[1768207124999,0.7976631,3117.5,3115.7,2.71639484]
[1768207125200,0.7976631,3117.4,3115.7,2.71639484]
[1768207125506,1.38033527,3117.9,3115.7,2.71639484]
[1768207125708,0.7976467,3117.8,3115.7,2.71639484]
[1768207125895,0.7976467,3117.7,3115.9,0.16065]
[1768207126096,2.25419927,3118.8,3116.5,1.56582311]
[1768207126302,0.79781166,3118.7,3116.6,1.877]
[1768207126503,0.00321952,3119.0,3117.0,2.71632484]
[1768207126811,0.79784784,3118.9,3117.2,0.16058]
[1768207127008,0.79784784,3118.8,3117.2,0.16058]
[1768207127200,0.00321952,3119.0,3117.2,0.16058]
[1768207127401,0.79779651,3118.9,3117.2,0.16058]
[1768207127597,0.79779651,3118.8,3117.2,0.16058]
[1768207127803,0.00321952,3119.0,3117.2,0.16058]
[1768207128096,0.79802127,3118.9,3117.2,0.16058]
[1768207128301,0.00321952,3119.0,3117.2,1.56578311]
[1768207128501,0.00321952,3119.0,3117.9,0.16055]
[1768207128707,1.38033527,3120.2,3117.9,0.16055]
[1768207128906,1.16114952,3120.1,3117.9,0.16055]
[1768207129110,1.16114952,3120.0,3118.2,2.55573484]
[1768207129302,0.79813448,3119.9,3118.3,0.16053]
[1768207129502,1.38033527,3120.2,3118.3,0.16053]
[1768207129706,1.38033527,3120.2,3118.3,0.16290536]
[1768207129707,0.7978498,3120.1,3118.3,0.16290536]
[1768207129909,0.7978498,3120.0,3118.3,0.16290536]
[1768207130110,1.38342732,3120.2,3118.3,0.16290536]
[1768207130309,0.79795669,3120.1,3118.3,2.03790536]
[1768207130499,0.79795669,3120.0,3118.3,2.03790536]
[1768207130703,1.38342732,3120.2,3118.3,2.03790536]
[1768207130907,0.79759599,3120.1,3118.3,2.03790536]
[1768207131108,0.79759599,3120.0,3118.3,2.03790536]
[1768207131322,1.38342732,3120.2,3118.3,2.03790536]
[1768207131508,0.79688971,3120.1,3118.3,2.03790536]
[1768207131707,0.79688971,3120.0,3118.3,2.03790536]
[1768207131908,1.38342732,3120.2,3118.3,2.03790536]
[1768207132105,1.38033527,3120.0,3118.3,0.00237536]
[1768207132303,1.38033527,3119.8,3118.3,0.00237536]
[1768207132511,1.38033527,3119.6,3118.3,0.00237536]
[1768207132818,1.38033527,3119.4,3118.3,0.00237536]
[1768207134315,1.54078527,3120.0,3118.3,0.00237536]
[1768207134617,1.38033527,3119.8,3118.3,0.00237536]
[1768207135512,0.00309205,3120.2,3118.3,2.5581102]
[1768207136315,0.00309205,3120.2,3118.5,0.16052]
[1768207137021,0.00309205,3120.2,3118.6,0.16051]
[1768207137315,0.00309205,3120.2,3119.0,2.55573484]
[1768207137719,1.11496732,3120.7,3119.0,3.96093795]
[1768207137923,1.38033527,3121.6,3119.6,2.55573484]
[1768207138220,1.38033527,3121.6,3119.7,0.16046]
[1768207138419,1.38033527,3121.6,3119.8,1.872]
[1768207138621,1.38033527,3121.6,3119.8,5.083]
[1768207138827,1.38402527,3121.6,3119.8,5.083]
[1768207139617,0.00369,3121.6,3119.8,5.24345]
[1768207139813,0.00369,3121.6,3120.2,0.16043]
[1768207140014,0.00369,3121.6,3120.3,1.871]
[1768207140215,0.00369,3121.6,3120.4,5.081]
[1768207140415,0.00369,3121.6,3120.2,1.871]
[1768207140626,1.38402527,3121.6,3119.4,2.55573484]
[1768207140810,1.38402527,3121.6,3119.5,5.081]
[1768207141012,1.38033527,3121.4,3119.2,3.21]
[1768207141208,1.38033527,3121.4,3118.3,0.16290536]
[1768207141209,1.54072527,3121.1,3118.3,0.16290536]
[1768207141415,1.38033527,3120.9,3118.3,0.00237536]
[1768207141615,0.16043,3120.4,3118.3,0.00237536]
[1768207141921,1.38033527,3120.2,3118.3,0.00237536]
[1768207142322,1.38033527,3120.0,3118.3,0.00237536]
[1768207142825,1.38033527,3119.8,3118.3,0.00237536]
[1768207145323,1.65338512,3121.2,3118.3,0.00237536]
[1768207145524,1.65338512,3121.0,3118.7,2.71624484]
[1768207145722,2.44889063,3120.9,3118.7,2.71624484]
[1768207145916,0.79550551,3120.8,3118.7,2.55573484]
[1768207146212,1.65338512,3120.9,3119.3,2.55573484]
[1768207146416,1.65338512,3121.5,3119.4,5.079]
[1768207146618,0.79631256,3121.4,3119.6,0.16046]
[1768207146817,1.65338512,3121.5,3119.6,0.16046]
[1768207147018,1.65338512,3121.5,3119.7,5.08]
[1768207147220,1.65338512,3121.5,3119.6,0.16046]
[1768207147422,1.65338512,3120.3,3118.5,0.02093]
[1768207147616,1.65338512,3120.1,3118.5,0.02093]
[1768207147817,1.65338512,3119.9,3118.5,0.02093]
[1768207148622,2.44772081,3119.8,3118.5,0.02093]
[1768207148824,1.65338512,3119.8,3118.5,0.02093]
[1768207150726,1.69235511,3119.6,3118.5,0.02093]
[1768207152331,0.79508691,3119.5,3118.5,0.02093]
[1768207152632,1.69235511,3119.6,3118.5,0.02093]
[1768207154429,2.48924409,3119.5,3118.5,0.02093]
[1768207154729,1.69235511,3119.5,3118.5,0.02093]
[1768207155325,0.79771597,3119.4,3118.5,0.02093]
[1768207155525,0.00338409,3119.4,3118.5,0.02093]
[1768207155725,1.6957392,3119.4,3118.5,0.02093]
[1768207156334,0.79817618,3119.3,3118.5,0.02093]
[1768207156531,1.6957392,3119.4,3118.5,0.02093]
[1768207156734,0.79817363,3119.3,3118.5,0.02093]
[1768207157031,7.6957392,3119.4,3117.3,1.87]
[1768207157230,1.69235511,3119.2,3117.2,3.21]
[1768207157426,1.69235511,3119.0,3117.2,3.21]
[1768207157620,0.79809677,3118.9,3117.2,3.21]
[1768207158020,0.79809677,3118.9,3117.2,3.21379453]
[1768207158528,1.69235511,3118.8,3117.2,0.00379453]
[1768207160534,1.69235511,3118.6,3117.2,0.00379453]
[1768207160837,1.69235511,3118.6,3116.4,3.21]
[1768207160838,1.69235511,3118.4,3116.4,3.21]
[1768207161128,1.69235511,3118.2,3116.4,3.21]
[1768207161324,1.69235511,3118.0,3116.4,3.21]
[1768207161530,1.69235511,3118.0,3116.5,1.97927569]
[1768207161728,1.69235511,3118.6,3116.5,1.9816491]
[1768207161934,0.79687366,3118.5,3116.6,0.16062]
[1768207162123,0.79687366,3118.4,3116.5,1.9816491]
[1768207162330,1.69235511,3119.0,3117.3,1.97927569]
[1768207162529,1.69235511,3119.0,3117.4,0.16058]
[1768207162725,1.69235511,3119.0,3117.6,0.16057]
[1768207163440,0.00338409,3119.4,3117.6,0.16057]
[1768207163630,2.48926454,3119.3,3117.6,0.16057]
[1768207163834,1.69235511,3119.3,3117.6,0.16057]
[1768207165536,0.00338409,3119.4,3118.0,0.16055]
[1768207167433,1.6957392,3119.4,3118.0,0.16055]
[1768207171235,0.00338409,3119.4,3118.0,0.16055]
[1768207171544,1.69235511,3119.9,3118.3,0.16053]
[1768207171732,2.49135168,3119.8,3118.3,0.16053]
[1768207171932,1.69235511,3119.8,3118.3,0.16053]
[1768207172540,0.79892205,3119.7,3118.3,0.16053]
[1768207172732,1.69610694,3119.8,3118.3,0.16053]
[1768207172932,0.79892981,3119.7,3118.3,0.16053]
[1768207173143,1.69235511,3119.7,3118.3,0.16053]
[1768207174629,0.00375183,3119.8,3118.5,0.16052]
[1768207174830,0.00375183,3119.8,3118.3,2.24106716]
[1768207175036,1.92336539,3120.9,3119.0,0.16049]
[1768207175236,0.79903691,3120.8,3119.0,5.23149]
[1768207175432,0.79903691,3120.7,3119.1,0.16049]
[1768207175634,1.92336539,3120.9,3119.1,0.16049]
[1768207175836,1.92336539,3120.7,3119.1,0.16049]
[1768207176035,1.92336539,3120.5,3119.1,0.0030912]
[1768207176834,0.00241269,3120.9,3119.1,0.0030912]
[1768207177040,0.79796441,3120.8,3119.1,0.0030912]
[1768207177244,0.79796441,3120.7,3119.1,0.0030912]
[1768207177540,1.92336539,3120.5,3119.1,0.0030912]
[1768207177735,1.92336539,3120.3,3119.1,0.0030912]
[1768207178137,1.92336539,3120.1,3119.1,0.0030912]
[1768207179748,1.92336539,3119.9,3118.4,0.16053]
[1768207180748,1.92336539,3119.9,3118.4,0.16291273]
[1768207181339,0.79759351,3119.8,3118.4,0.00238273]
[1768207181539,1.92336539,3119.6,3118.4,0.00238273]
[1768207187049,1.92336539,3119.4,3117.4,3.37057]
[1768207187248,1.92336539,3119.4,3117.5,1.857]
[1768207188046,1.92336539,3119.4,3117.5,1.86004909]
[1768207188455,1.92336539,3119.4,3117.5,2.02061909]
[1768207188752,1.92336539,3119.4,3117.5,1.86004909]
[1768207189550,1.92336539,3119.4,3117.8,0.16055]
[1768207191251,1.92336539,3119.4,3117.9,0.16055]
[1768207192058,2.25419927,3120.3,3117.5,5.96301494]
[1768207192266,1.92336539,3120.1,3118.0,1.84828742]
[1768207192452,1.92336539,3120.1,3118.7,0.16051]
[1768207192655,1.92336539,3120.8,3118.8,1.856]
[1768207192850,1.92336539,3120.6,3118.8,1.856]
[1768207193045,0.00241269,3120.9,3118.8,1.856]
[1768207193046,1.92336539,3120.4,3118.8,1.856]
[1768207193252,1.92336539,3120.2,3118.7,0.16051]
[1768207193453,1.92336539,3120.0,3118.4,1.855]
[1768207193656,1.92336539,3119.8,3118.4,1.855]
[1768207194454,1.92336539,3119.6,3118.3,0.16053]
[1768207195349,1.92336539,3120.4,3118.2,1.856]
[1768207195554,3.09477201,3120.3,3118.4,0.16052]
[1768207195854,2.72391695,3120.2,3118.5,0.16052]
[1768207196055,0.80055156,3120.1,3118.5,0.16052]
[1768207196255,0.80055156,3120.1,3118.6,0.16051]
[1768207196662,0.80055156,3120.1,3118.7,0.16051]
[1768207197459,2.72391695,3120.1,3118.7,0.16051]
[1768207197660,1.92336539,3119.9,3118.7,0.16051]
[1768207198069,1.92336539,3119.7,3118.3,1.857]
[1768207198664,0.80060544,3119.6,3118.3,1.857]
[1768207198874,1.92336539,3119.7,3118.3,1.857]
[1768207199166,2.83890615,3120.7,3118.2,3.21]
[1768207199167,1.92336539,3119.5,3118.2,1.857]
[1768207200453,1.92336539,3119.5,3118.3,0.16053]
[1768207200653,1.92336539,3119.5,3117.8,2.25467843]
[1768207200958,1.92336539,3119.3,3117.6,2.01757]
[1768207201158,1.92336539,3119.1,3117.5,0.00304909]
[1768207201359,1.92336539,3118.9,3116.3,5.27115435]
[1768207201563,1.92336539,3118.7,3116.4,1.856]
[1768207201760,4.54817816,3118.6,3116.3,0.16063]